fUSD/lending_fUSD_20250106
["ID","MTS","AMOUNT","RATE_DAILY","PERIOD"]
[347862398,1736167846364,-2397.53,0.00010846,2]
[347862399,1736167846373,-476.69752598,0.00010847,2]
[347862400,1736167846382,-500.0,0.00010847,2]
[347862401,1736167846392,-1258.81,0.00010847,2]
[347862402,1736167846402,-1941.52,0.00010847,2]
[347862403,1736167846411,-883.35,0.00010847,2]
[347862404,1736167846420,-500.0,0.00010847,2]
[347862405,1736167846430,-3561.47,0.00010847,2]
[347862406,1736167846440,-1440.36,0.00010847,2]
[347862407,1736167846451,-1518.51,0.00010847,2]
[347862408,1736167846460,-1121.57472401,0.00010847,2]
[347862411,1736167847097,-783.75,0.00010846,2]
[347862412,1736167847107,-307.52820005,0.00010847,2]
[347862413,1736167847119,-1243.95707594,0.00010847,2]
[347862414,1736167847130,-532.37,0.0001087,2]
[347862415,1736167847139,-65.22392026,0.0001087,2]
[347862416,1736167847156,-434.77607974,0.0001087,2]
[347862417,1736167847166,-825.11,0.0001087,2]
[347862418,1736167847175,-500.0,0.0001087,2]
[347862419,1736167847184,-62.69832133,0.0001087,2]
[347862420,1736167847195,-437.30167867,0.0001087,2]
[347862421,1736167847204,-500.0,0.0001087,2]
[347862422,1736167847214,-511.32,0.0001087,2]
[347862423,1736167847223,-500.0,0.0001087,2]
[347862424,1736167847232,-1430.63,0.0001087,2]
[347862425,1736167847241,-1718.74127689,0.0001087,2]
[347862426,1736167847253,-550.43872311,0.0001087,2]
[347862427,1736167847262,-4169.13784047,0.0001087,2]
[347862428,1736168107423,287.79,8.3e-05,2]
[347862429,1736168133620,459.53,8.219e-05,2]
[347862431,1736168241929,-150.44,9.938e-05,2]
[347862432,1736168241956,-250.0,9.938e-05,2]
[347862433,1736168241982,-150.0,0.00010024,2]
[347862434,1736168242008,-1008.3536941,0.00010025,2]
[347862435,1736168242033,-1303.81,0.00010025,2]
[347862436,1736168242059,-3592.28,0.00010025,2]
[347862437,1736168242088,-3592.28,0.00010025,2]
[347862438,1736168242114,-3592.28,0.00010025,2]
[347862439,1736168242139,-3592.28,0.00010025,2]
[347862440,1736168242165,-3592.28,0.00010025,2]
[347862441,1736168242192,-3592.28,0.00010025,2]
[347862442,1736168242217,-3592.28,0.00010025,2]
[347862443,1736168242243,-3592.28,0.00010025,2]
[347862444,1736168242269,-3592.28,0.00010025,2]
[347862445,1736168242296,-3592.28,0.00010025,2]
[347862446,1736168242323,-3592.28,0.00010025,2]
[347862447,1736168242349,-3592.28,0.00010025,2]
[347862448,1736168242375,-3592.28,0.00010025,2]
[347862449,1736168242401,-3592.28,0.00010025,2]
[347862450,1736168242427,-3592.28,0.00010025,2]
[347862451,1736168242453,-3592.28,0.00010025,2]
[347862452,1736168242479,-3592.28,0.00010025,2]
[347862453,1736168242506,-3592.28,0.00010025,2]
[347862454,1736168242532,-3592.28,0.00010025,2]
[347862455,1736168242558,-3592.28,0.00010025,2]
[347862456,1736168242584,-3592.28,0.00010025,2]
[347862457,1736168242610,-3592.28,0.00010025,2]
[347862458,1736168242638,-3592.28,0.00010025,2]
[347862459,1736168242664,-3592.43,0.00010025,2]
[347862460,1736168242690,-1313.59,0.00010025,2]
[347862461,1736168242716,-2189.21,0.00010025,2]
[347862462,1736168242742,-1340.95,0.00010025,2]
[347862463,1736168242768,-1369.61,0.00010297,2]
[347862464,1736168242798,-1563.06,0.00010297,2]
[347862465,1736168242824,-825.16,0.00010297,2]
[347862466,1736168242848,-500.0,0.00010297,2]
[347862467,1736168242875,-1587.81,0.00010297,2]
[347862468,1736168242900,-500.0,0.00010297,2]
[347862469,1736168242925,-329.9031951,0.00010297,2]
[347862470,1736168242952,-500.0,0.00010298,2]
[347862471,1736168242976,-500.0,0.00010298,2]
[347862472,1736168243000,-502.81,0.00010298,2]
[347862473,1736168243025,-500.0,0.00010298,2]
[347862474,1736168243051,-500.0,0.00010298,2]
[347862475,1736168243075,-500.0,0.00010298,2]
[347862476,1736168243371,-500.0,0.00010298,2]
[347862477,1736168243397,-500.0,0.00010298,2]
[347862478,1736168243422,-501.20393325,0.00010298,2]
[347862479,1736168243449,-607.11,0.00010298,2]
[347862480,1736168243474,-500.0,0.00010298,2]
[347862481,1736168243498,-501.70264171,0.00010298,2]
[347862482,1736168243522,-500.0,0.00010298,2]
[347862483,1736168243547,-500.0,0.00010298,2]
[347862484,1736168243571,-500.0,0.00010298,2]
[347862485,1736168243596,-500.0,0.00010298,2]
[347862486,1736168243621,-551.9,0.00010298,2]
[347862487,1736168243646,-500.0,0.00010298,2]
[347862488,1736168243671,-500.0,0.00010298,2]
[347862489,1736168243698,-609.11,0.00010298,2]
[347862490,1736168243723,-500.16680285,0.00010298,2]
[347862491,1736168243749,-500.0,0.00010298,2]
[347862492,1736168243781,-240185.22973299,0.00010298,2]
[347862496,1736168552028,199.94120138,0.0001961,120]
[347862510,1736169031550,-150.44,9.351e-05,2]
[347862511,1736169031560,-250.0,9.373e-05,2]
[347862512,1736169031570,-1000.0,9.435e-05,2]
[347862513,1736169031581,-724.62,9.67e-05,2]
[347862514,1736169031591,-281.81,9.69e-05,2]
[347862515,1736169031601,-150.0,9.888e-05,2]
[347862516,1736169031610,-150.0,9.888e-05,2]
[347862517,1736169031619,-150.0,9.888e-05,2]
[347862518,1736169031629,-150.5109069,9.888e-05,2]
[347862519,1736169031638,-150.86544738,9.888e-05,2]
[347862520,1736169031648,-150.00000001,9.888e-05,2]
[347862521,1736169031658,-150.0,9.979e-05,2]
[347862522,1736169031669,-500.0,0.00010025,2]
[347862523,1736169031678,-500.0,0.00010025,2]
[347862524,1736169031690,-500.0,0.00010025,2]
[347862525,1736169031699,-500.0,0.00010025,2]
[347862526,1736169031708,-1496.02,0.00010025,2]
[347862527,1736169031717,-2362.14,0.00010025,2]
[347862528,1736169031727,-6878.81,0.00010025,2]
[347862529,1736169031736,-168.01,0.00010036,2]
[347862530,1736169031745,-150.0,0.00010071,2]
[347862531,1736169031755,-150.0,0.00010071,2]
[347862532,1736169031764,-8611.766,0.00010092,2]
[347862533,1736169031773,-409.874,0.00010092,2]
[347862534,1736169031782,-150.0,0.00010107,2]
[347862535,1736169031791,-185.53,0.00010137,2]
[347862536,1736169031801,-150.0,0.00010162,2]
[347862537,1736169031810,-150.0,0.00010254,2]
[347862538,1736169031819,-150.0,0.00010254,2]
[347862539,1736169031829,-499.40250892,0.00010273,2]
[347862540,1736169031838,-150.0,0.00010296,2]
[347862541,1736169031847,-500.0,0.00010297,2]
[347862542,1736169031857,-500.0,0.00010297,2]
[347862543,1736169031866,-500.0,0.00010297,2]
[347862544,1736169031876,-500.0,0.00010297,2]
[347862545,1736169031886,-500.0,0.00010297,2]
[347862546,1736169031895,-500.0,0.00010297,2]
[347862547,1736169031904,-500.0,0.00010297,2]
[347862548,1736169031914,-533.76735687,0.00010297,2]
[347862549,1736169031924,-500.0,0.00010297,2]
[347862550,1736169031933,-500.0,0.00010297,2]
[347862551,1736169031943,-2373.19,0.00010297,2]
[347862552,1736169031953,-500.0,0.00010297,2]
[347862553,1736169031962,-500.0,0.00010297,2]
[347862554,1736169031972,-500.0,0.00010297,2]
[347862555,1736169031982,-193.62242165,0.00010297,2]
[347862556,1736169031992,-500.0,0.00010297,2]
[347862557,1736169032001,-500.0,0.00010297,2]
[347862558,1736169032011,-500.0,0.00010297,2]
[347862559,1736169032021,-297.27292632,0.00010297,2]
[347862560,1736169032030,-500.0,0.00010297,2]
[347862561,1736169032039,-500.0,0.00010297,2]
[347862562,1736169032049,-500.0,0.00010297,2]
[347862563,1736169032059,-500.0,0.00010297,2]
[347862564,1736169032069,-500.0,0.00010297,2]
[347862565,1736169032078,-500.0,0.00010297,2]
[347862566,1736169032087,-500.0,0.00010297,2]
[347862567,1736169032096,-500.0,0.00010297,2]
[347862568,1736169032105,-500.0,0.00010297,2]
[347862569,1736169032115,-500.0,0.00010297,2]
[347862570,1736169032124,-500.0,0.00010297,2]
[347862571,1736169032134,-500.0,0.00010297,2]
[347862572,1736169032144,-492.55629278,0.00010297,2]
[347862573,1736169032153,-500.0,0.00010297,2]
[347862574,1736169032165,-500.0,0.00010297,2]
[347862576,1736169032174,-500.0,0.00010297,2]
[347862577,1736169032183,-500.0,0.00010297,2]
[347862578,1736169032193,-500.0,0.00010297,2]
[347862579,1736169032202,-500.0,0.00010297,2]
[347862580,1736169032211,-500.0,0.00010297,2]
[347862581,1736169032220,-500.0,0.00010297,2]
[347862582,1736169032229,-150.92551481,0.00010297,2]
[347862583,1736169032239,-500.0,0.00010297,2]
[347862584,1736169032249,-500.0,0.00010297,2]
[347862585,1736169032258,-500.0,0.00010297,2]
[347862586,1736169032268,-500.0,0.00010297,2]
[347862587,1736169032277,-500.0,0.00010297,2]
[347862588,1736169032286,-500.0,0.00010297,2]
[347862589,1736169032296,-500.0,0.00010297,2]
[347862590,1736169032305,-500.0,0.00010297,2]
[347862591,1736169032314,-500.0,0.00010297,2]
[347862592,1736169032323,-500.0,0.00010297,2]
[347862593,1736169032332,-500.0,0.00010297,2]
[347862594,1736169032342,-500.0,0.00010297,2]
[347862595,1736169032351,-466.6378719,0.00010297,2]
[347862596,1736169032360,-500.0,0.00010297,2]
[347862597,1736169032369,-500.0,0.00010297,2]
[347862598,1736169032379,-500.0,0.00010297,2]
[347862599,1736169032387,-500.0,0.00010297,2]
[347862600,1736169032397,-500.0,0.00010297,2]
[347862601,1736169032406,-500.0,0.00010297,2]
[347862602,1736169032417,-500.0,0.00010297,2]
[347862603,1736169032428,-500.0,0.00010297,2]
[347862604,1736169032437,-500.0,0.00010297,2]
[347862605,1736169032446,-500.0,0.00010297,2]
[347862606,1736169032455,-500.0,0.00010297,2]
[347862607,1736169032464,-500.0,0.00010297,2]
[347862608,1736169032473,-2374.84,0.00010297,2]
[347862609,1736169032482,-500.0,0.00010297,2]
[347862610,1736169032491,-500.0,0.00010297,2]
[347862611,1736169032503,-1387.36,0.00010297,2]
[347862612,1736169032514,-500.0,0.00010297,2]
[347862613,1736169032523,-546.95,0.00010297,2]
[347862614,1736169032532,-500.0,0.00010297,2]
[347862615,1736169032542,-500.0,0.00010297,2]
[347862616,1736169032552,-500.0,0.00010297,2]
[347862617,1736169032561,-511.3,0.00010297,2]
[347862618,1736169032570,-505.86,0.00010297,2]
[347862619,1736169032580,-2165.98,0.00010297,2]
[347862620,1736169032589,-500.0,0.00010297,2]
[347862621,1736169032598,-1595.0,0.00010297,2]
[347862622,1736169032607,-563.64,0.00010297,2]
[347862623,1736169032617,-574.74,0.00010297,2]
[347862624,1736169032626,-500.0,0.00010297,2]
[347862625,1736169032635,-500.0,0.00010297,2]
[347862626,1736169032644,-500.0,0.00010297,2]
[347862627,1736169032653,-500.0,0.00010297,2]
[347862628,1736169032663,-2720.29,0.00010297,2]
[347862629,1736169032673,-500.0,0.00010297,2]
[347862630,1736169032683,-2015.57,0.00010297,2]
[347862631,1736169032692,-554.68,0.00010297,2]
[347862632,1736169032701,-562.9,0.00010297,2]
[347862633,1736169032710,-500.0,0.00010297,2]
[347862634,1736169032720,-500.0,0.00010297,2]
[347862635,1736169032729,-500.0,0.00010297,2]
[347862636,1736169032739,-833.07,0.00010297,2]
[347862637,1736169032749,-500.0,0.00010297,2]
[347862638,1736169032758,-998.62,0.00010297,2]
[347862639,1736169032768,-500.0,0.00010297,2]
[347862640,1736169032777,-500.0,0.00010297,2]
[347862641,1736169032786,-790.78,0.00010297,2]
[347862642,1736169032796,-1073.78,0.00010297,2]
[347862643,1736169032805,-500.0,0.00010297,2]
[347862644,1736169032814,-500.0,0.00010297,2]
[347862645,1736169032823,-500.0,0.00010297,2]
[347862646,1736169032832,-500.0,0.00010297,2]
[347862647,1736169032842,-500.0,0.00010297,2]
[347862648,1736169032851,-526.33,0.00010297,2]
[347862649,1736169032860,-500.0,0.00010297,2]
[347862650,1736169032870,-500.0,0.00010297,2]
[347862651,1736169032879,-870.68,0.00010297,2]
[347862652,1736169032889,-1521.65,0.00010297,2]
[347862653,1736169032898,-500.0,0.00010297,2]
[347862654,1736169032909,-500.0,0.00010297,2]
[347862655,1736169032918,-317.89,0.00010297,2]
[347862656,1736169032927,-730.6,0.00010297,2]
[347862657,1736169032936,-500.0,0.00010297,2]
[347862658,1736169032946,-500.0,0.00010297,2]
[347862659,1736169032955,-500.0,0.00010297,2]
[347862660,1736169032964,-692.62,0.00010297,2]
[347862661,1736169032973,-500.0,0.00010297,2]
[347862662,1736169032983,-500.0,0.00010297,2]
[347862663,1736169032993,-500.0,0.00010297,2]
[347862664,1736169033002,-819.67,0.00010297,2]
[347862665,1736169033012,-500.0,0.00010297,2]
[347862666,1736169033021,-500.0,0.00010297,2]
[347862667,1736169033032,-500.0,0.00010297,2]
[347862668,1736169033043,-912.39,0.00010297,2]
[347862669,1736169033053,-2714.82,0.00010297,2]
[347862670,1736169033063,-500.0,0.00010297,2]
[347862671,1736169033072,-3372.91,0.00010297,2]
[347862672,1736169033081,-685.78,0.00010297,2]
[347862673,1736169033091,-191.07815401,0.00010297,2]
[347862674,1736169033101,-500.0,0.00010297,2]
[347862675,1736169033110,-256843.21100385,0.00010298,2]
[347862676,1736169033408,-2493.60005683,0.00010298,2]
[347862677,1736169033420,-500.0,0.00010298,2]
[347862678,1736169033432,-9914.3,0.00010298,2]
[347862679,1736169033458,-999.992,0.00010298,2]
[347862680,1736169033470,-8739.28065605,0.00010298,2]
[347862681,1736169033481,-41108.8508769,0.00010298,2]
[347862682,1736169033515,-2176.09119283,0.00010298,2]
[347862683,1736169033538,-3251.22842254,0.00010298,2]
[347862684,1736169033626,-1246.38,0.00010298,2]
[347862685,1736169033638,-1792.327,0.00010298,2]
[347862686,1736169033650,-1227.1353198,0.00010298,2]
[347862700,1736169037508,-500.0,0.00010297,2]
[347862701,1736169037517,-500.0,0.00010297,2]
[347862702,1736169037526,-9468.1428125,0.00010298,2]
[347862703,1736169037538,-13144.83328,0.00010298,2]
[347862704,1736169037588,-11357.50001164,0.00010298,2]
[347862705,1736169037624,-22387.20481563,0.00010298,2]
[347862706,1736169037636,-4200.0,0.00010298,2]
[347862707,1736169037648,-3103.57100234,0.00010298,2]
[347862708,1736169037668,-9918.59999999,0.00010298,2]
[347862711,1736169039497,-500.0,0.00010297,2]
[347862712,1736169039507,-207.37000039,0.00010297,2]
[347862713,1736169039555,-264.3266572,0.00010297,2]
[347862714,1736169039565,-190.76782565,0.00010297,2]
[347862715,1736169039578,-309.23217435,0.00010297,2]
[347862716,1736169039590,-1044.00572787,0.00010298,2]
[347862717,1736169039667,-382326.71608824,0.00010298,2]
[347862718,1736169039678,-500.0,0.00010298,2]
[347862719,1736169039687,-500.0,0.00010298,2]
[347862720,1736169039698,-500.0,0.00010298,2]
[347862721,1736169039707,-509.69304943,0.00010298,2]
[347862722,1736169039717,-500.0,0.00010298,2]
[347862723,1736169039727,-515.16,0.00010298,2]
[347862724,1736169039737,-500.0,0.00010298,2]
[347862725,1736169039747,-437.50982336,0.00010298,2]
[347862726,1736169039756,-1231.53,0.00010298,2]
[347862727,1736169039766,-1942.95,0.00010298,2]
[347862728,1736169039775,-849.09,0.00010298,2]
[347862729,1736169039785,-3270.44,0.00010298,2]
[347862730,1736169039794,-1521.71,0.00010298,2]
[347862731,1736169039803,-1259.37,0.00010298,2]
[347862732,1736169039812,-2009.92,0.00010298,2]
[347862733,1736169039822,-2098.0,0.00010298,2]
[347862734,1736169039832,-1203.36,0.00010298,2]
[347862735,1736169039842,-1258.86,0.00010298,2]
[347862736,1736169039851,-157.03311115,0.00010298,2]
[347862737,1736169039860,-1537.77,0.00010298,2]
[347862738,1736169039869,-1561.53,0.00010299,2]
[347862739,1736169039878,-500.0,0.00010299,2]
[347862740,1736169039887,-500.0,0.00010299,2]
[347862741,1736169039897,-3162.57,0.00010299,2]
[347862742,1736169039905,-500.0,0.00010299,2]
[347862743,1736169039915,-500.0,0.00010299,2]
[347862744,1736169039924,-1000.37,0.00010299,2]
[347862745,1736169039934,-900.76,0.00010299,2]
[347862746,1736169039943,-692.67,0.00010299,2]
[347862747,1736169039952,-1000.0,0.00010299,2]
[347862748,1736169039962,-531.4,0.00010299,2]
[347862749,1736169039971,-500.0,0.00010299,2]
[347862750,1736169039980,-1432.88,0.00010299,2]
[347862751,1736169039990,-500.0,0.00010299,2]
[347862752,1736169039999,-500.0,0.00010299,2]
[347862753,1736169040008,-500.0,0.00010299,2]
[347862754,1736169040017,-1496.02,0.00010299,2]
[347862755,1736169040026,-2362.14,0.00010299,2]
[347862756,1736169040035,-6878.81,0.00010299,2]
[347862757,1736169040044,-150.0,0.00010327,2]
[347862758,1736169040054,-55505.07029145,0.0001034,2]
[347862759,1736169040064,-150.0,0.00010345,2]
[347862760,1736169040073,-150.0,0.00010437,2]
[347862761,1736169040083,-150.0,0.00010437,2]
[347862762,1736169040092,-547.532,0.0001045,2]
[347862763,1736169040101,-459.53,0.00010471,2]
[347862764,1736169040111,-500.0,0.00010473,2]
[347862765,1736169040121,-3685.49577855,0.000105,3]
[347862766,1736169040130,-326.41,0.000105,2]
[347862767,1736169040140,-150.0,0.000105,2]
[347862768,1736169040150,-979.32,0.000105,2]
[347862769,1736169040160,-1000.0,0.000105,2]
[347862770,1736169040169,-150.0,0.00010529,2]
[347862771,1736169040178,-150.0,0.00010547,2]
[347862772,1736169040188,-500.0,0.00010571,2]
[347862773,1736169040197,-500.0,0.00010571,2]
[347862774,1736169040206,-500.0,0.00010571,2]
[347862775,1736169040215,-500.0,0.00010571,2]
[347862776,1736169040224,-500.0,0.00010571,2]
[347862777,1736169040233,-500.0,0.00010571,2]
[347862778,1736169040242,-500.0,0.00010571,2]
[347862779,1736169040251,-2373.19,0.00010571,2]
[347862780,1736169040260,-500.0,0.00010571,2]
[347862781,1736169040269,-500.0,0.00010571,2]
[347862782,1736169040278,-500.0,0.00010571,2]
[347862783,1736169040288,-500.0,0.00010571,2]
[347862784,1736169040297,-500.0,0.00010571,2]
[347862785,1736169040307,-500.0,0.00010571,2]
[347862786,1736169040316,-500.0,0.00010571,2]
[347862787,1736169040326,-389.29222715,0.00010571,2]
[347862788,1736169040336,-500.0,0.00010571,2]
[347862789,1736169040346,-500.0,0.00010571,2]
[347862790,1736169040355,-500.0,0.00010571,2]
[347862791,1736169040364,-500.0,0.00010571,2]
[347862792,1736169040373,-500.0,0.00010571,2]
[347862793,1736169040382,-500.0,0.00010571,2]
[347862794,1736169040392,-500.0,0.00010571,2]
[347862795,1736169040401,-500.0,0.00010571,2]
[347862796,1736169040410,-500.0,0.00010571,2]
[347862797,1736169040420,-500.0,0.00010571,2]
[347862798,1736169040429,-500.0,0.00010571,2]
[347862799,1736169040438,-500.0,0.00010571,2]
[347862800,1736169040447,-500.0,0.00010571,2]
[347862801,1736169040456,-500.0,0.00010571,2]
[347862802,1736169040466,-500.0,0.00010571,2]
[347862803,1736169040475,-500.0,0.00010571,2]
[347862804,1736169040484,-500.0,0.00010571,2]
[347862805,1736169040493,-500.0,0.00010571,2]
[347862806,1736169040502,-500.0,0.00010571,2]
[347862807,1736169040513,-500.0,0.00010571,2]
[347862808,1736169040524,-500.0,0.00010571,2]
[347862809,1736169040533,-500.0,0.00010571,2]
[347862810,1736169040542,-500.0,0.00010571,2]
[347862811,1736169040552,-475.16762572,0.00010571,2]
[347862812,1736169040563,-500.0,0.00010571,2]
[347862813,1736169040573,-586.05501517,0.00010571,2]
[347862814,1736169040582,-500.0,0.00010571,2]
[347862815,1736169040594,-500.0,0.00010571,2]
[347862816,1736169040604,-500.0,0.00010571,2]
[347862817,1736169040613,-500.0,0.00010571,2]
[347862818,1736169040623,-500.0,0.00010571,2]
[347862819,1736169040632,-628.39608865,0.00010571,2]
[347862820,1736169040642,-500.0,0.00010571,2]
[347862821,1736169040651,-500.0,0.00010571,2]
[347862822,1736169040660,-2374.84,0.00010571,2]
[347862823,1736169040671,-500.0,0.00010571,2]
[347862824,1736169040681,-638.05,0.00010571,2]
[347862825,1736169040691,-1387.36,0.00010571,2]
[347862826,1736169040700,-500.0,0.00010571,2]
[347862827,1736169040709,-500.0,0.00010571,2]
[347862828,1736169040718,-500.0,0.00010571,2]
[347862829,1736169040727,-254.6415904,0.00010571,2]
[347862830,1736169040735,-511.3,0.00010571,2]
[347862831,1736169040744,-505.86,0.00010571,2]
[347862832,1736169040754,-2165.98,0.00010571,2]
[347862833,1736169040763,-500.0,0.00010571,2]
[347862834,1736169040772,-1595.0,0.00010571,2]
[347862835,1736169040781,-500.0,0.00010571,2]
[347862836,1736169040790,-500.0,0.00010571,2]
[347862837,1736169040800,-500.0,0.00010571,2]
[347862838,1736169040810,-500.0,0.00010571,2]
[347862839,1736169040819,-2720.29,0.00010571,2]
[347862840,1736169040829,-230.57877558,0.00010571,2]
[347862841,1736169040839,-2015.57,0.00010571,2]
[347862842,1736169040848,-554.68,0.00010571,2]
[347862843,1736169040857,-562.9,0.00010571,2]
[347862844,1736169040866,-500.0,0.00010571,2]
[347862845,1736169040876,-500.0,0.00010571,2]
[347862846,1736169040885,-500.0,0.00010571,2]
[347862847,1736169040895,-833.07,0.00010571,2]
[347862848,1736169040904,-998.62,0.00010571,2]
[347862849,1736169040914,-500.0,0.00010571,2]
[347862850,1736169040924,-500.0,0.00010571,2]
[347862851,1736169040935,-500.0,0.00010571,2]
[347862852,1736169040944,-790.78,0.00010571,2]
[347862853,1736169040954,-1073.78,0.00010571,2]
[347862854,1736169040963,-500.0,0.00010571,2]
[347862855,1736169040973,-500.0,0.00010571,2]
[347862856,1736169040982,-500.0,0.00010571,2]
[347862857,1736169040991,-500.0,0.00010571,2]
[347862858,1736169041000,-614.11,0.00010571,2]
[347862859,1736169041010,-526.33,0.00010571,2]
[347862860,1736169041019,-500.0,0.00010571,2]
[347862861,1736169041028,-500.0,0.00010571,2]
[347862862,1736169041037,-870.68,0.00010571,2]
[347862863,1736169041049,-1521.65,0.00010571,2]
[347862864,1736169041058,-500.0,0.00010571,2]
[347862865,1736169041067,-500.0,0.00010571,2]
[347862866,1736169041078,-730.6,0.00010571,2]
[347862867,1736169041087,-202.25317667,0.00010571,2]
[347862868,1736169041097,-500.0,0.00010571,2]
[347862869,1736169041106,-500.0,0.00010571,2]
[347862870,1736169041115,-692.62,0.00010571,2]
[347862871,1736169041124,-500.0,0.00010571,2]
[347862872,1736169041133,-500.0,0.00010571,2]
[347862873,1736169041142,-500.0,0.00010571,2]
[347862874,1736169041151,-819.67,0.00010571,2]
[347862875,1736169041160,-500.0,0.00010571,2]
[347862876,1736169041170,-500.0,0.00010571,2]
[347862877,1736169041179,-912.39,0.00010571,2]
[347862878,1736169041189,-2714.82,0.00010571,2]
[347862879,1736169041198,-3372.91,0.00010571,2]
[347862880,1736169041207,-500.0,0.00010571,2]
[347862881,1736169041216,-685.78,0.00010571,2]
[347862882,1736169041226,-500.0,0.00010571,2]
[347862883,1736169041235,-405.56,0.00010571,2]
[347862884,1736169041244,-500.0,0.00010571,2]
[347862885,1736169041254,-500.0,0.00010571,2]
[347862886,1736169041263,-500.0,0.00010572,2]
[347862887,1736169041273,-500.0,0.00010572,2]
[347862888,1736169041282,-500.0,0.00010572,2]
[347862889,1736169041291,-500.0,0.00010572,2]
[347862890,1736169041301,-515.16,0.00010572,2]
[347862891,1736169041310,-500.0,0.00010572,2]
[347862892,1736169041319,-629.72,0.00010572,2]
[347862893,1736169041328,-724.44,0.00010572,2]
[347862894,1736169041338,-500.0,0.00010572,2]
[347862895,1736169041347,-500.0,0.00010572,2]
[347862896,1736169041356,-500.0,0.00010572,2]
[347862897,1736169041366,-500.0,0.00010572,2]
[347862898,1736169041375,-500.0,0.00010572,2]
[347862899,1736169041385,-500.0,0.00010572,2]
[347862900,1736169041395,-379.16067009,0.00010572,2]
[347862901,1736169041403,-500.0,0.00010572,2]
[347862902,1736169041413,-500.0,0.00010572,2]
[347862903,1736169041425,-500.0,0.00010572,2]
[347862904,1736169041434,-772.93,0.00010572,2]
[347862905,1736169041443,-500.0,0.00010572,2]
[347862906,1736169041453,-500.0,0.00010572,2]
[347862907,1736169041462,-500.0,0.00010572,2]
[347862908,1736169041471,-500.0,0.00010572,2]
[347862909,1736169041482,-500.0,0.00010572,2]
[347862910,1736169041491,-500.0,0.00010572,2]
[347862911,1736169041500,-1370.36,0.00010572,2]
[347862912,1736169041510,-2526.43,0.00010572,2]
[347862913,1736169041523,-1379.1,0.00010572,2]
[347862914,1736169041532,-1231.53,0.00010572,2]
[347862915,1736169041541,-1942.95,0.00010572,2]
[347862916,1736169041551,-867.06,0.00010572,2]
[347862917,1736169041561,-849.09,0.00010572,2]
[347862918,1736169041570,-3270.44,0.00010572,2]
[347862919,1736169041580,-510.19,0.00010572,2]
[347862920,1736169041589,-1521.71,0.00010572,2]
[347862921,1736169041599,-1259.37,0.00010572,2]
[347862922,1736169041609,-500.0,0.00010572,2]
[347862923,1736169041619,-2009.92,0.00010572,2]
[347862924,1736169041628,-2098.0,0.00010572,2]
[347862925,1736169041637,-1203.36,0.00010572,2]
[347862926,1736169041647,-790.73,0.00010572,2]
[347862927,1736169041656,-1258.86,0.00010572,2]
[347862928,1736169041666,-1561.53,0.00010573,2]
[347862929,1736169041675,-500.0,0.00010573,2]
[347862930,1736169041684,-500.0,0.00010573,2]
[347862931,1736169041693,-3162.57,0.00010573,2]
[347862932,1736169041702,-500.0,0.00010573,2]